Workbook

Sheet menu
D3: CETAK RAPOT KELAS X
D4: SMA NEGERI 1 KOTA SERANG
D5: TAHUN AJARAN 2016-2017

Sheet data
A1: DAFTAR NILAI MID SEMESTER GENAP
A2: SMP NEGERI 1 KOTA SERANG
A3: TAHUN PELAJARAN 2016/2017
A5: NO | B5: NAMA SISWA | C5: KELAS | D5: MATA PELAJARAN | L5: Jumlah | M5: Rata-Rata | N5: Rank. Kelas
D6: Agama | E6: PKn | F6: Indonesia | G6: IPS | H6: IPA | I6: Inggris | J6: Math | K6: Senbud
D7: 76 | E7: 75 | F7: 75 | G7: 75 | H7: 72 | I7: 80 | J7: 71 | K7: 75
A8: 1 | B8: 2 | C8: 3 | D8: 4 | E8: 5 | F8: 6 | G8: 7 | H8: 8 | I8: 9 | J8: 10 | K8: 11 | L8: 12 | M8: 13 | N8: 14
A9: 1 | B9: ACHMAD FACHRAN RAFLY | C9: 7A | D9: 90 | E9: 77.5 | F9: 100 | G9: 92.5 | H9: 96.66999817 | I9: 90 | J9: 93.33000183 | K9: 80 | L9: =SUM(D9:K9) -> 720 | M9: =AVERAGE(D9:K9) -> 90 | N9: =RANK(L9,$L$9:$L$13,0) -> 1 | O9: NIA KURNIAWATI | P9: NIP. 19640426 198903 2 006 | R9: =IF(D9<D$7,"TL","L") -> L | S9: L | T9: L | U9: L | V9: L | W9: L | X9: L | Y9: L | Z9: =IF(#REF!<#REF!,"TL","L") -> 
A10: 2 | B10: AIZZI SYAHNEZA ARI | C10: 7A | D10: 82.5 | E10: 57.5 | F10: 82.5 | G10: 80 | H10: 56.66999817 | I10: 82.5 | J10: 76.66999817 | K10: 55 | L10: =SUM(D10:K10) -> 573.3399963 | M10: =AVERAGE(D10:K10) -> 71.66749954 | N10: 3 | O10: NIA KURNIAWATI | P10: NIP. 19640426 198903 2 006 | R10: L | S10: TL | T10: L | U10: L | V10: TL | W10: L | X10: L | Y10: TL | Z10: =IF(#REF!<#REF!,"TL","L") -> 
A11: 3 | B11: ALYA MAULIDYA JUNITA | C11: 7A | D11: 100 | E11: 57.5 | F11: 82.5 | G11: 65 | H11: 70 | I11: 92.5 | J11: 76.66999817 | K11: 65 | L11: =SUM(D11:K11) -> 609.1699982 | M11: =AVERAGE(D11:K11) -> 76.14624977 | N11: 2 | O11: NIA KURNIAWATI | P11: NIP. 19640426 198903 2 006 | R11: L | S11: TL | T11: L | U11: TL | V11: TL | W11: L | X11: L | Y11: TL | Z11: =IF(#REF!<#REF!,"TL","L") -> 
A12: 4 | B12: ANNISYA AULIA FITRI | C12: 7A | D12: 80 | E12: 65 | F12: 72.5 | G12: 70 | H12: 70 | I12: 85 | J12: 60 | K12: 65 | L12: =SUM(D12:K12) -> 567.5 | M12: =AVERAGE(D12:K12) -> 70.9375 | N12: 5 | O12: NIA KURNIAWATI | P12: NIP. 19640426 198903 2 006 | R12: L | S12: TL | T12: TL | U12: TL | V12: TL | W12: L | X12: TL | Y12: TL | Z12: =IF(#REF!<#REF!,"TL","L") -> 
A13: 5 | B13: BAGUS ANUGRAH | C13: 7B | D13: 80 | E13: 65 | F13: 70 | G13: 80 | H13: 60 | I13: 77.5 | J13: 70 | K13: 67.5 | L13: =SUM(D13:K13) -> 570 | M13: =AVERAGE(D13:K13) -> 71.25 | N13: 4 | O13: NIA KURNIAWATI | P13: NIP. 19640426 198903 2 006 | R13: L | S13: TL | T13: TL | U13: L | V13: TL | W13: TL | X13: TL | Y13: TL | Z13: =IF(#REF!<#REF!,"TL","L") -> 
A14: NILAI RATA-RATA | D14: =AVERAGE(D9:D13) -> 86.5 | E14: 64.5 | F14: 81.5 | G14: 77.5 | H14: 70.66799927 | I14: 85.5 | J14: 75.33399963 | K14: 66.5 | L14: 608.0019989 | M14: 76.00024986
A15: NILAI TERTINGGI | D15: =MAX(D9:D13) -> 100 | E15: 77.5 | F15: 100 | G15: 92.5 | H15: 96.66999817 | I15: 92.5 | J15: 93.33000183 | K15: 80 | L15: 720 | M15: 90 | N15: 1
A16: NILAI TERENDAH | D16: =MIN(D9:D13) -> 80 | E16: 57.5 | F16: 70 | G16: 65 | H16: 56.66999817 | I16: 77.5 | J16: 60 | K16: 55 | L16: 567.5 | M16: 70.9375 | N16: 5
A17: JUMLAH LULUS | D17: =COUNTIF(R9:R13,"L") -> 5 | E17: 1 | F17: 3 | G17: 3 | H17: 1 | I17: 4 | J17: 3 | K17: 1
A18: JUMLAH TIDAK LULUS | D18: =COUNTIF(R9:R13,"TL") -> 0 | E18: 4 | F18: 2 | G18: 2 | H18: 4 | I18: 1 | J18: 2 | K18: 4
A19: NILAI RATA-RATA | D19: =AVERAGE(D9:D13) -> 86.5 | E19: =AVERAGE(E9:E13) -> 64.5 | F19: 81.5 | G19: 77.5 | H19: 70.66799927 | I19: 85.5 | J19: 75.33399963 | K19: 66.5

Sheet rapot
A1: LAPORAN HASIL BELAJAR | F1: 5
A2: MID SEMESTER GENAP
A3: TAHUN AJARAN 2016/2017
A5: ="NAMA : "&VLOOKUP(F1,SISWA,2,TRUE) -> NAMA : BAGUS ANUGRAH | E5: ="KELAS : "&VLOOKUP(F1,SISWA,3,TRUE) -> KELAS : 7B
A7: NO | B7: MATA PELAJARAN | C7: KKM | D7: NILAI | E7: CATATAN
A8: 1 | B8: Pendidikan Agama | C8: 76 | D8: =VLOOKUP(F1,SISWA,4,TRUE) -> 80 | E8: =IF(D8=C8,"TUNTAS",IF(D8>C8,"TERLAMPAUI","BELUM TUNTAS")) -> TERLAMPAUI
A9: 2 | B9: PKn | C9: 75 | D9: =VLOOKUP(F1,SISWA,5,TRUE) -> 65 | E9: =IF(D9=C9,"TUNTAS",IF(D9>C9,"TERLAMPAUI","BELUM TUNTAS")) -> BELUM TUNTAS
A10: 3 | B10: Bahasa Indonesia | C10: 75 | D10: =VLOOKUP(F1,SISWA,6,TRUE) -> 70 | E10: BELUM TUNTAS | G10: MULAI | H10: AKHIR
A11: 4 | B11: IPS | C11: 75 | D11: =VLOOKUP(F1,SISWA,7,TRUE) -> 80 | E11: TERLAMPAUI | G11: 1 | H11: 20
A12: 5 | B12: IPA | C12: 72 | D12: =VLOOKUP(F1,SISWA,8,TRUE) -> 60 | E12: BELUM TUNTAS
A13: 6 | B13: Bahas Inggris | C13: 80 | D13: =VLOOKUP(F1,SISWA,9,TRUE) -> 77.5 | E13: BELUM TUNTAS
A14: 7 | B14: Matematika | C14: 71 | D14: =VLOOKUP(F1,SISWA,10,TRUE) -> 70 | E14: BELUM TUNTAS
A15: 8 | B15: Seni Budaya | C15: 75 | D15: =VLOOKUP(F1,SISWA,11,TRUE) -> 67.5 | E15: BELUM TUNTAS
A16: JUMLAH | E16: =SUM(D8:D15) -> 570
A17: RATA-RATA | E17: =AVERAGE(D8:D15) -> 71.25
B19: Mengetahui, | E19: Serang, 21 Maret 2016
B20: Orang Tua / Wali Murid | E20: Wali Kelas
B22: ......................................... | E22: Siti Daryanti, M. Kom.
B23: (Tanda Tangan & Nama Jelas) | E23: NIP. 19751106 201001 2 005

Sheet grafik
A1: DATA NILAI RATA-RATA
A2: UTS 2016
A4: NO. | B4: MAPEL | C4: NILAI
A5: 1 | B5: Agama | C5: 86.5
A6: 2 | B6: PKn | C6: 64.5
A7: 3 | B7: Indonesia | C7: 81.5
A8: 4 | B8: IPS | C8: 77.5
A9: 5 | B9: IPA | C9: 70.66799927
A10: 6 | B10: Inggris | C10: 85.5
A11: 7 | B11: Math | C11: 75.33399963
A12: 8 | B12: Senbud | C12: 66.5
